Cogmind - Beta 13 @@@ ROGUE MODE // 2024.04.13 @ 12:31:50 Player: YenYu Result: Self-destructed Performance ------------- Evolutions (2) 1000 Regions Visited (3) 600 Robots Destroyed (43) 215 Value Destroyed (1067) 1067 Prototype IDs (2) 40 Alien Tech Used (0) 0 Bonus (0) 0 TOTAL SCORE: 2922 Bonus ------- None Cogmind --------- Core Integrity 351/550 Matter 300/300 Energy 240/240 System Corruption 0% Temperature Cool (60) Movement Core (300) Ox5 Location -8/Materials Parts ------- > --- POWER (1) -------- Nuclear Core > --- PROPULSION (4) --- (None) > --- UTILITY (4) ------ Small Storage Unit > --- WEAPON (2) ------- Advanced Beam Rifle Gauss Rifle > --- INVENTORY (8) ---- Deuterium Engine Nuclear Core Advanced Beam Rifle Hammer Peak State ------------ > --- POWER ------------ Nuclear Core > --- PROPULSION ------- Light Treads Light Treads Light Treads Armored Treads > --- UTILITY ---------- Improved Heat Sink Small Storage Unit Light Armor Plating Long-range Tractor Beam > --- WEAPON ----------- Advanced Beam Rifle Gauss Rifle > --- INVENTORY -------- Deuterium Engine Nuclear Core Light Treads Light Treads Advanced Beam Rifle Hammer [Rating: 26] Favorites ----------- Power Ion Engine Engine Ion Engine Power Core Nuclear Core Propulsion Light Treads Treads Light Treads Utility Small Storage Unit Device Sensor Array Storage Small Storage Unit Protection Light Armor Plating Weapon Heavy Assault Rifle Energy Gun Small Laser Ballistic Gun Heavy Assault Rifle Impact Weapon Hammer Build | -11 -10 -9 -8 ------- Run | Yrd Mat Mat Mat Slots Evolved 4 | . . 2 2 Power . | . . . . Propulsion 2 | . . . 2 Utility 2 | . . 2 . Weapon . | . . . . Parts Attached 47 | 6 9 14 18 Power 4 | . 2 . 2 Engine 3 | . 2 . 1 Core 1 | . . . 1 Reactor . | . . . . Propulsion 17 | 2 2 5 8 Treads 17 | 2 2 5 8 Leg . | . . . . Wheel . | . . . . Hover . | . . . . Flight . | . . . . Utility 10 | 2 1 3 4 Device 4 | 1 1 . 2 Storage 3 | 1 . 1 1 Processor . | . . . . Hackware . | . . . . Protection 3 | . . 2 1 Artifact . | . . . . Weapon 16 | 2 4 6 4 Energy Gun 6 | 1 1 3 1 Energy Cannon . | . . . . Ballistic Gun 9 | 1 3 3 2 Ballistic Cannon . | . . . . Launcher . | . . . . Special Weapon . | . . . . Impact Weapon 1 | . . . 1 Slashing Weapon . | . . . . Piercing Weapon . | . . . . Special Melee Weapon . | . . . . Unidentified Prototypes 2 | . . 2 . Parts Lost 14 | . 1 . 13 Power . | . . . . Propulsion 6 | . . . 6 Utility 5 | . . . 5 Weapon 3 | . 1 . 2 Highest Loss Streak 10 | . 1 . 10 To Critical Strikes . | . . . . Average Slot Usage (%) 98 | . 98 98 97 Engine 10 | . 12 10 3 Core 1 | . . . 5 Treads 27 | . 28 21 35 Device 12 | . 14 11 11 Storage 16 | . 14 22 16 Protection 4 | . . 10 7 Energy Gun 7 | . 10 8 . Ballistic Gun 16 | . 17 13 16 Naked Turns . | . . . . Heaviest Build 25 | 8 15 21 25 Greatest Support 80 | 40 40 40 80 Greatest Overweight (x) 3 | . . 3 . Average Overweight (x) . | . . . . Largest Inventory Capacity 8 | 8 8 8 8 Average Capacity 7 | 7 8 8 8 Most Carried 8 | 5 8 8 8 Average Carried 6 | 3 6 7 6 Final Capacity 8 | 8 8 8 8 Final Carried 8 | 4 8 7 4 Class Distribution -------------------- 92% | Mutant 7% | Scavenger-Mutant Dominant Class ---------------- Mutant | -10/Materials Mutant | -9/Materials Mutant | -8/Materials Resources | -11 -10 -9 -8 ----------- Run | Yrd Mat Mat Mat Matter Collected 1200 | 266 351 176 407 Remotely 182 | . . . 182 Salvage Created 1599 | 136 701 380 382 Parts 88 | 11 36 21 20 Haulers Intercepted 2 | . 2 . . Recyclers Shooed 2 | . 1 1 . Parts Field Recycled . | . . . . Retrieved Matter . | . . . . Parts Self-Destructed . | . . . . Prevented . | . . . . Kills | -11 -10 -9 -8 ------- Run | Yrd Mat Mat Mat Combat Hostiles Destroyed 30 | . 11 9 10 Guns 30 | . 11 9 10 Classes Destroyed 12 | 2 7 2 1 Worker 1 | . 1 . . Builder 1 | . 1 . . Tunneler 3 | 3 . . . Hauler 2 | . 2 . . Recycler 2 | 1 1 . . Operator 2 | . 2 . . Watcher 2 | . 2 . . Swarmer 7 | . 3 . 4 Grunt 18 | . 8 7 3 Brawler 1 | . . 1 . Sentry 3 | . . 1 2 Hunter 1 | . . . 1 Best Kill Streak 4 | 4 3 3 4 Combat Bots Only 4 | . 3 3 4 Max Kills in Single Turn 2 | 1 1 2 2 Gunslinging 1 | . . 1 . Exploded . | . . . . Melee . | . . . . Uniques/NPCs Destroyed . | . . . . Combat | -11 -10 -9 -8 -------- Run | Yrd Mat Mat Mat Hostile Shots Fired 225 | . 53 42 130 Missed 68 | . 20 7 41 Damage Taken 2576 | . 606 417 1553 Core 470 | . 202 69 199 Absorbed by Shields . | . . . . Core Remaining (%) 67 | 100 19 82 . Volleys Fired 142 | 6 72 29 35 Largest 2 | 2 2 2 2 Hottest 89 | 60 60 84 89 Shots Fired 275 | 12 140 58 65 Gun 275 | 12 140 58 65 Cannon . | . . . . Launcher . | . . . . Special . | . . . . Kinetic 179 | 6 80 35 58 Thermal 96 | 6 60 23 7 Explosive . | . . . . Electromagnetic . | . . . . Robot Hit Streak 15 | 8 15 8 11 Robot Miss Streak 4 | 1 4 3 2 Penetration Max 1 | . . . 1 Secondary Targets 3 | . . 1 2 Max Gunslinging Chain 1 | . . 1 1 Shots Hit Robots 177 | 9 80 36 52 Core Hits 81 | 5 39 12 25 Critical Kills 1 | . 1 . . Critical Parts Destroyed . | . . . . Critical Strikes 2 | . 1 1 . Burn 1 | . . 1 . Destroy 1 | . 1 . . Melee Attacks . | . . . . Impact . | . . . . Slashing . | . . . . Piercing . | . . . . Sneak Attacks . | . . . . Combat Hostiles . | . . . . Follow-up Attacks . | . . . . Damage Inflicted 2490 | 91 930 646 823 Guns 2490 | 91 930 646 823 Cannons . | . . . . Explosions . | . . . . Melee . | . . . . Ramming . | . . . . Kinetic 1501 | 23 469 306 703 Thermal 989 | 68 461 340 120 Explosive . | . . . . Electromagnetic . | . . . . Impact . | . . . . Slashing . | . . . . Piercing . | . . . . Highest Corruption 2 | . . 2 . Average Corruption 2 | . . 2 . Corruption Purged . | . . . . Corruption Blocked . | . . . . Effects 3 | . . 3 . Message Errors 1 | . . 1 . Energy Discharges 2 | . . 2 . Overload Shots . | . . . . Overflow Damage . | . . . . Projectiles . | . . . . Explosions . | . . . . Melee . | . . . . Knockbacks . | . . . . Impact . | . . . . Kinetic . | . . . . Secondary . | . . . . Self-Inflicted Damage . | . . . . Shots . | . . . . Rammed . | . . . . Targets Rammed . | . . . . Kicked . | . . . . Crushed . | . . . . Highest Temperature 234 | 20 66 234 60 Average Temperature 47 | 9 20 92 13 Received Heat Transfer 690 | . 219 192 279 Siege Activations . | . . . . Robots Corrupted . | . . . . Combat Hostiles . | . . . . Parts Fried . | . . . . Impact Corruptions . | . . . . Robots Melted . | . . . . Combat Hostiles . | . . . . Parts Melted 1 | . 1 . . Heat Transferred 2100 | 150 1025 703 222 Parts Sabotaged . | . . . . Parts Stolen . | . . . . Parts Stripped . | . . . . Power Chain Reactions . | . . . . Alert | -11 -10 -9 -8 ------- Run | Yrd Mat Mat Mat Peak Influence 308 | 20 252 137 308 Initial 57 | . 13 . 57 Average 94 | 7 89 69 169 Maximum Alert Level 1 | . 1 . 1 Low Security (%) 87 | 100 89 100 60 Level 1 12 | . 10 . 39 Level 2 . | . . . . Level 3 . | . . . . Level 4 . | . . . . Level 5 . | . . . . High Security . | . . . . Max Security . | . . . . Squads Dispatched 11 | . 3 3 5 Investigation 4 | . 1 2 1 Extermination . | . . . . Reinforcement 5 | . 2 1 2 Assault . | . . . . Garrison 2 | . . . 2 Intercept . | . . . . Searches Triggered . | . . . . Construction Impeded 1 | . . 1 . Haulers Reinforced . | . . . . Active Scanning Responses . | . . . . Cargo Convoy Interrupts . | . . . . Stealth | -11 -10 -9 -8 --------- Run | Yrd Mat Mat Mat Distress Signals 2 | . 2 . . Communications Jammed . | . . . . Distress Signals . | . . . . Times Spotted 53 | . 26 10 17 Peak Tracking Total 7 | . 4 4 7 Tactical Retreats . | . . . . Traps | -11 -10 -9 -8 ------- Run | Yrd Mat Mat Mat Traps Triggered 4 | . 1 2 1 Indirectly . | . . . . Trap Hack Attempts . | . . . . Triggered . | . . . . Disarmed . | . . . . Reprogrammed . | . . . . Reused . | . . . . Traps Extracted . | . . . . Installed . | . . . . Triggered . | . . . . Machines | -11 -10 -9 -8 ---------- Run | Yrd Mat Mat Mat Machines Disabled . | . . . . Max in Single Turn . | . . . . Machines Repaired . | . . . . Machines Dismantled . | . . . . Machines Sabotaged . | . . . . Overloaded Fab Kills . | . . . . Hacking | -11 -10 -9 -8 --------- Run | Yrd Mat Mat Mat Machines Accessed 12 | . 5 4 3 Terminals 9 | . 4 3 2 Fabricators . | . . . . Repair Stations . | . . . . Recycling Units 1 | . 1 . . Scanalyzers 1 | . . 1 . Garrison Access 1 | . . . 1 Total Hacks 38 | . 12 19 7 Successful 19 | . 5 13 1 Failed 19 | . 7 6 6 Catastrophic 6 | . 3 . 3 Database Lockouts . | . . . . Manual 21 | . 8 7 6 Terminals 24 | . 9 9 6 Fabricators . | . . . . Repair Stations . | . . . . Recycling Units 3 | . 3 . . Scanalyzers 10 | . . 10 . Garrison Access 1 | . . . 1 Terminal Hacks 8 | . 3 4 1 Record 3 | . 1 2 . Part Schematic 1 | . . . 1 Alert Level 2 | . 1 1 . Security Status 2 | . 1 1 . Fabricator Hacks . | . . . . Repair Station Hacks . | . . . . Recycling Unit Hacks 2 | . 2 . . Report Inventory 1 | . 1 . . Retrieve Components 1 | . 1 . . Scanalyzer 9 | . . 9 . Insert Component 4 | . . 4 . Analyze 5 | . . 5 . Garrison Access Hacks . | . . . . Unauthorized Hacks . | . . . . Terminals . | . . . . Fabricators . | . . . . Repair Stations . | . . . . Recycling Units . | . . . . Scanalyzers . | . . . . Garrison Access . | . . . . Data Cores Recovered . | . . . . Used . | . . . . Hacking Detections 11 | . 5 3 3 Full Trace Events 4 | . 1 2 1 Feedback Events . | . . . . Feedback Blocked . | . . . . Robot Schematics Acquired . | . . . . Robots Built . | . . . . Authchips . | . . . . Time . | . . . . Total Robot Build Rating . | . . . . Part Schematics Acquired 5 | . . 4 1 Parts Built . | . . . . Authchips . | . . . . Time . | . . . . Total Part Build Rating . | . . . . Parts Repaired . | . . . . Time . | . . . . Parts Recycled . | . . . . Recycled Matter . | . . . . Retrieved Matter . | . . . . Retrieved Components 1 | . 1 . . Parts Scanalyzed 4 | . . 4 . Part Schematics Acquired 4 | . . 4 . Parts Damaged . | . . . . Bothacking | -11 -10 -9 -8 ------------ Run | Yrd Mat Mat Mat Used RIF Installer . | . . . . Robots Hacked . | . . . . Non-combat . | . . . . Combat . | . . . . Robot Hacks Applied . | . . . . Relay Couplers Released . | . . . . Fabnet Peak Effective % . | . . . . Robots Rewired . | . . . . Allies Hacked . | . . . . Hacks Repelled . | . . . . Allies | -11 -10 -9 -8 -------- Run | Yrd Mat Mat Mat Total Allies . | . . . . Largest Group . | . . . . Highest-Rated Group . | . . . . Highest-Rated Ally . | . . . . Total Orders . | . . . . Ally Attacks . | . . . . Total Damage . | . . . . Kills . | . . . . Allies Corrupted . | . . . . Allies Melted . | . . . . Intel | -11 -10 -9 -8 ------- Run | Yrd Mat Mat Mat Robot Analysis Total . | . . . . Derelict Logs Recovered . | . . . . Drone Launches . | . . . . Drone Recoveries . | . . . . Exploration | -11 -10 -9 -8 ------------- Run | Yrd Mat Mat Mat Turns Passed 2497 | 109 1298 650 440 Spaces Moved 1159 | 66 643 267 183 Core 27 | 26 . 1 . Treads 1132 | 40 643 266 183 Legs . | . . . . Wheels . | . . . . Hover . | . . . . Flight . | . . . . Fastest Speed 50 | 50 160 160 160 Average Speed 157 | 116 160 160 161 Slowest Speed 200 | 160 160 200 162 Overloaded Moves . | . . . . Propulsion Burnouts . | . . . . Robots Hopped . | . . . . Cave-ins Triggered . | . . . . Exploration Rate (%) 33 | 4 87 24 18 Regions Visited 3 Branch Regions . Pre-discovered Areas . | . . . . Known Exits Taken . | . . . . Unknown Exits Taken 3 | 1 1 1 . Scrap Searched . | . . . . Spaces Dug . | . . . . Terrain Destroyed . | . . . . Melee . | . . . . Projectile . | . . . . AOE . | . . . . Terrain Rammed . | . . . . Walls Destroyed . | . . . . Machines Disabled . | . . . . Actions | -11 -10 -9 -8 --------- Run | Yrd Mat Mat Mat Total 1561 | 87 781 433 260 Wait 144 | . 32 102 10 Move 1156 | 65 642 266 183 Hop . | . . . . Pick Up 48 | 10 16 13 9 Fast Attach 1 | . . . 1 Attach 25 | 6 2 7 10 Detach 1 | . . . 1 Swap 21 | . 7 7 7 Drop 23 | . 10 9 4 Fire 142 | 6 72 29 35 Melee . | . . . . Ram . | . . . . Kick . | . . . . Crush . | . . . . Escape Stasis . | . . . . Rewire . | . . . . Trap . | . . . . Miscellaneous . | . . . . Route ------- -11/Scrapyard -10/Materials (discovered 5 exits: *Mat x3 / [*Min x2]) -9/Materials -8/Materials History --------- Turn | Location | Event 9 | -11/Scrapyard | Discovered new exit (range 14) 110 | -11/Scrapyard | Entered Materials 314 | -10/Materials | Build established: Mutant 345 | -10/Materials | Core integrity fell below 50% 397 | -10/Materials | Discovered new exit (range 14) 716 | -10/Materials | Discovered new exit (range 4) 905 | -10/Materials | Discovered new exit (range 15) 957 | -10/Materials | Core integrity fell below 20% 1176 | -10/Materials | Discovered new exit (range 9) 1349 | -10/Materials | Discovered new exit (range 6) 1408 | -10/Materials | Entered another Materials area 1408 | -9/Materials | Evolved 2 slots: Utility x2 2044 | -9/Materials | Discovered new exit (range 9) 2058 | -9/Materials | Entered another Materials area 2058 | -8/Materials | Evolved 2 slots: Propulsion x2 2376 | -8/Materials | Garrison activated, responded to threat 2422 | -8/Materials | Lost 3 parts (2u1w) 2498 | -8/Materials | Self-destructed Last Messages --------------- 02483_ Acquired 4 matter. 02483_ Lgt. Treads destroyed. 02484_ U-05 Engineer builds a Wall. 02484_ K-01 Serf collects debris. 02486_ Acquired 7 matter. 02486_ Acquired 3 matter. 02486_ Lgt. Treads destroyed. 02486_ Slug penetrates H-61 Shepherd. 02487_ Acquired 3 matter. 02488_ K-01 Serf collects debris. 02489_ Slug penetrates H-61 Shepherd. 02489_ Arm. Treads destroyed. 02489_ U-05 Engineer builds a Wall. 02493_ Acquired 4 matter. 02493_ Lgt. Treads destroyed. 02493_ Critical hit (Burn: +37). 02494_ K-01 Serf collects debris. 02494_ Lrn. Tractor Beam destroyed. 02495_ Imp. Heat Sink destroyed. 02497_ K-01 Serf collects debris. Map ----- +----------------------------------------------------+ | ?????????????????????????????????????????????????? | | ?????????????????????????????????????????????????? | | ?????????????????????????????????????????????????? | | ?????????????????????????????????????????????????? | | ?????????????????????????????????????????????????? | | ?????????????????????????????????????????????????? | | ?????????????????????????????????????????????????? | | ???????????????????????????????????????????######? | | ???????????????????????????????????????????# ## | | ???????????????????????????????????????????+ | | ???????????????????????????????????????????# | | ???????????????????????????????????????????# ## | | ???????????????????????????????????????????## ##? | | ????????????????????????????????????????????# #?? | | ??????????????????????????????????#+#???????# #?? | | ??????????????????????????????????# ######### ### | | ??????????????????????????????????# # # | | ??????????????????????????????????# # """ # ### | | ??????????????????????????????????# # "G" # #?? | | ??????????????????????????????????#*# = " " + ### | | ??????????????#???????????????????# # # | | ?????????????##k ????????########?# ######### | | ???????????### ####### ####[###??####+#### | | ?????????? ! g u *x #### % | | ?????????? g H x! * / | | ?????????? a g @ k % #### """" | | ?????????????# #######! ###+#####?# " """ | | ?????????????????????????######## * #?# """"" | | ????????????????????????????????# #?# """ | | ????????????????????????????????# #?# | | ????????????????????????????????# """" #?# | | ????????????????????????????????# """" #?# "T" | | ????????????????????????????????# """" #?######??? | | ????????????????????????????????########?????????? | | ?????????????????????????????????????????????????? | | ?????????????????????????????????????????????????? | | ?????????????????????????????????????????????????? | | ?????????????????????????????????????????????????? | | ?????????????????????????????????????????????????? | | ?????????????????????????????????????????????????? | | ?????????????????????????????????????????######### | | ?????????????????????????????????????????? | | ?????????????????????????????????????????????# | | ?????????????????????????????????????????????# T | | ?????????????????????????????????????????????# | | ?????????????????????????????????????????????# | | ?????????????????????????????????????????????## | | ??????????????????????????????????????????????# | | ??????????????????????????????????????????????# | | ??????????????????????????????????????????????+ | +----------------------------------------------------+ Best States ------------- Heat Dissipation 45 Energy Generation 14 Energy Capacity 250 Matter Stores 400 Matter Capacity 400 Sight Range 16 Robot Scan Range 14 Terrain Scan Range 16 Terrain Scan Density 10 Armor Coverage 150 Evasion (%) 50 Recoil Reduction 4 Item Schematics ----------------- Ion Engine | -9/Materials | Scanalyzed Lgt. Treads | -9/Materials | Scanalyzed Hvy. Assault Rifle | -9/Materials | Scanalyzed Hammer | -9/Materials | Scanalyzed Lgt. Armor Plating | -8/Materials | Hacked Robot Schematics ------------------ None Fabricated ------------ Nothing Alien Tech Used ----------------- None Achievements -------------- None Challenges ------------ None Game ------ Seed CombatTerrabombReactor Manual? 0 Play Time 00:24:45 Cumulative 26.5 hours Start 2024.04.13 @ 12:08:01 End 2024.04.13 @ 12:31:50 Sessions 1 Manual Loads 0 Difficulty Rogue Special Mode None Game No. 32 Rogue 32 Adventurer 0 Explorer 0 Win Type - Total 0 Types 0/0/0/0/0/0/0/0/0 Lore% 13 Gallery% 28 Achievement% 22 Wizard Run 0 Options --------- Layout 1 ASCII 0 Keyboard 0 Movement Mouse Keybinds 0 Fullscreen 1 Font 24/Smallcaps Map View 50x35 Zoom Use 6% Tactical HUD 1 Map Filters NONE Filters NONE Steam 1 RUN: 3d5f2211-e91e-49e1-9cc6-6f54868bde47